{"text_format":"1","workbook":"xlsx","n_sheets":2,"sheets":["2016","Hinweise"],"not_rendered":{"charts":0,"images":0,"macros":1,"external_links":0,"defined_names":14,"comments":1,"pivot_tables":0},"unopened":[],"bounds":{"document_bytes":16777216,"sheet_cells":100000,"rows_first":2000,"rows_last":500,"rows_between":2000,"halvings":0,"cell_chars":16384,"cell_head_chars":4096},"cells_cut":0,"cells_raw":0,"read":"whole","date_system":"1900"}

{"sheet":"2016","index":0,"n_rows":26,"n_cols":17,"rows_kept":26,"cut":false,"hidden":false,"merged":[[8,9,8,10],[9,9,9,10],[10,9,10,10],[11,9,11,10],[3,0,3,2],[0,0,0,4],[0,8,0,11],[15,9,15,12],[14,4,14,5],[4,7,4,12],[6,9,6,10],[7,9,7,10]]}
["Muster GmbH",null,null,null,null,null,2000,null,null,1990,null,null,2016,null,false,null,1]
[null,null,null,null,null,null,null,null,null,null,null,null,null,null,{"$f":"IF(O1*1=1,1,0)","v":0},null,3]
[{"$f":"\"Entwicklung Darlehen  \"&TEXT(Beginn_Wj,\"TT.MM.JJJJ\")&\"  -\"","v":"Entwicklung Darlehen  01.01.2016  -"},null,null,null,{"$f":"DATE(M1,O6,O7+P7)","v":"2016-12-31"},null,null,"Zinstage pro Jahr",null,{"$f":"IF(DATE(YEAR(H7),MONTH(H7)+12,0)=VALUE(E3),VALUE(E3)-VALUE(H7)+1,360)","v":366},null,null,null,null,360,null,5]
["Max Mustermann",null,null,null,null,null,null,null,null,null,null,null,null,null,365,null,7]
[null,null,null,null,null,"Zinssatz",null,"Zeitraum",null,null,null,null,null,null,366,null,8]
[{"$f":"ADDRESS(ROW(A19)+1,COLUMN(A19))","v":"$A$20"},null,null,null,null,{"$f":"F7","v":0.05},null,{"$f":"H7-1","v":"2015-12-31"},null,null,null,null,null,null,12,null,10]
[null,null,null,null,{"$f":"IF(OR(H7<H6,M7<H7),\"Datum prüfen !\",\"\")","v":""},0.05,null,{"$f":"DATE(M1,MONTH(E3)-11,1)-0.0000000000001","v":"2016-01-01"},null,"bis",null,null,{"$f":"E3","v":"2016-12-31"},null,31,{"$f":"IF(AND(O6=2,O7>28+(MOD(M1,4)=0)),28+(MOD(M1,4)=0)-O7,IF(AND(ISNA(MATCH(O6,Q1:Q7,0)),O7>30),-1,0))","v":0},12]
[null,null,null,null,"Datum prüfen !"]
[null,null,null,null,""]
[null,null,null,null,""]
[null,null,null,null,""]
[null,null,null,null,""]
[]
[]
[null,null,null,null,"Bewegung"]
["Datum",null,"Text",null,"Soll","Haben",null,"Saldo",null,"Zinsen"]
[null,null,null,null,{"$f":"IF(M1>2001,\"Euro\",\"DM\")","v":"Euro"},{"$f":"E17","v":"Euro"},null,{"$f":"E17","v":"Euro"},null,"%","Tage",null,{"$f":"E17","v":"Euro"}]
[]
[{"$f":"IF(OR($J$3=365,$J$3=366),DATE(M1-1,MONTH(E3),DAY(E3)),$H$7)","v":"2015-12-31"},null,"Saldovortrag",null,10000,null,null,{"$f":"IF(J19=\"\",\"Zinssatz ?\",IF(K19=\"\",\"Tage ?\",SUM(INDIRECT(\"H\"&ROW()-1)+SUM(D19:E19)-SUM(F19:G19))))","v":10000},null,{"$f":"IF(ISERROR(INDEX($F$6:$M$13,MATCH(A19,$H$6:$H$13,1),1)*100),\"\",INDEX($F$6:$M$13,MATCH(A19,$H$6:$H$13,1),1)*100)","v":5},{"$f":"IF(A19=INDIRECT(\"A\"&ROW()+1),0,IF(AND(INDIRECT(\"A\"&ROW()+1)-A19>=0,OR($J$3=365,$J$3=366)),INDIRECT(\"A\"&ROW()+1)-A19,IF(AND(INDIRECT(\"A\"&ROW()+1)-A19<0,OR($J$3=365,$J$3=366)),$E$3-A19,IF((DAYS360(A19,INDIRECT(\"A\"&ROW()+1)))>=0,DAYS360(A19,INDIRECT(\"A\"&ROW()+1)),DAYS360(A19,$E$3)))))","v":31},null,{"$f":"ROUND((H19*J19%)/$J$3*K19,2)","v":42.35}]
["2016-01-31",null,"1. Buchung",null,1000,null,null,{"$f":"IF(J20=\"\",\"Zinssatz ?\",IF(K20=\"\",\"Tage ?\",SUM(INDIRECT(\"H\"&ROW()-1)+SUM(D20:E20)-SUM(F20:G20))))","v":11000},null,{"$f":"IF(ISERROR(INDEX($F$6:$M$13,MATCH(A20,$H$6:$H$13,1),1)*100),\"\",INDEX($F$6:$M$13,MATCH(A20,$H$6:$H$13,1),1)*100)","v":5},{"$f":"IF(A20=INDIRECT(\"A\"&ROW()+1),0,IF(AND(INDIRECT(\"A\"&ROW()+1)-A20>=0,OR($J$3=365,$J$3=366)),INDIRECT(\"A\"&ROW()+1)-A20,IF(AND(INDIRECT(\"A\"&ROW()+1)-A20<0,OR($J$3=365,$J$3=366)),$E$3-A20,IF((DAYS360(A20,INDIRECT(\"A\"&ROW()+1)))>=0,DAYS360(A20,INDIRECT(\"A\"&ROW()+1)),DAYS360(A20,$E$3)))))","v":335},null,{"$f":"ROUND((H20*J20%)/$J$3*K20,2)","v":503.42}]
[null,null,null,null,null,null,null,null,null,{"$f":"IF(ISERROR(INDEX($F$6:$M$13,MATCH(A21,$H$6:$H$13,1),1)*100),\"\",INDEX($F$6:$M$13,MATCH(A21,$H$6:$H$13,1),1)*100)","v":""}]
[null,null,null,null,null,null,null,null,null,{"$f":"IF(ISERROR(INDEX($F$6:$M$13,MATCH(A22,$H$6:$H$13,1),1)*100),\"\",INDEX($F$6:$M$13,MATCH(A22,$H$6:$H$13,1),1)*100)","v":""}]
[null,null,null,null,null,null,null,null,null,null,{"$f":"SUM(K17:K22)","v":366},null,{"$f":"SUM(M17:M22)","v":545.77}]
[null,null,null,null,null,null,null,null,null,null,{"$f":"IF(AND(K23<>VALUE(E3)-VALUE(H7)+1,OR(J3=365,J3=366)),\"Anzahl Tage <> \"&VALUE(E3)-VALUE(H7)+1,IF(AND(K23=VALUE(E3)-VALUE(H7)+1,OR(J3=365,J3=366)),\"\",IF(AND(K23<>DAYS360(H7,E3)),\"Anzahl Tage <> \"&DAYS360(H7,E3),\"\")))","v":""}]
[{"$f":"E3","v":"2016-12-31"},null,{"$f":"IF(I1=\"\",\"Zinsen \"&M1,\"Zinsen \"&I1&\" / \"&M1)","v":"Zinsen 2016"},null,null,null,null,{"$f":"M23","v":545.77},null,null,null,null,{"$f":"IF(COUNTA(H17:H22)<>COUNTA(M17:M22),\"Zinsen neu berechnen !\",\"\")","v":""}]
[null,null,{"$f":"\"Stand \"&TEXT(E3,\"TT.MM.JJJJ\")","v":"Stand 31.12.2016"},null,null,null,null,{"$f":"SUM(E17:E25)-SUM(F17:F25)+H25","v":11545.77}]

{"sheet":"Hinweise","index":1,"n_rows":39,"n_cols":1,"rows_kept":39,"cut":false,"hidden":false,"merged":[[1,0,1,7]]}
[]
["Hinweise zur Nutzung der Zinsstaffel"]
[]
[]
["Die Tabelle dient der Ermittlung von Zinsen für Darlehen."]
[]
["Für die Zinsberechnung kann die Anzahl der Zinstage pro Jahr in Zelle J3 individuell eingegeben werden."]
["Das Programm rechnet standardmäßig mit den tatsächlichen Kalendertagen pro Jahr, wenn der Zinszeitraum"]
["genau 12 Monate umfaßt. Ansonsten wird mit 360 Zinstagen pro Jahr gerechnet. "]
[]
["Werden weitere Zinssätze benötigt, bitte die Tabelle \"=Zinsstaffel  variabel\" verwenden"]
[]
["Die Eingaben können unabhängig von der zeitlichen Reihenfolge erfaßt werden. "]
["Zusätzlich benötigte Zeilen können vor der letzten schmalen Zeile eingefügt werden."]
["Dazu genügt ein Klick auf den Button \"Zeile einfügen\" ."]
[]
["Vor Fertigstellung der Tabelle müssen noch folgende Arbeitsschritte durchgeführt werden."]
[]
["1. Stand zum Jahresende prüfen!"]
[]
["2. Daten chronologisch sortieren"]
["    Dazu genügt ein Klick auf den Button \"Daten sortieren\" ."]
[]
["3. Die Zinssätze in Spalte J  noch mal prüfen."]
[]
["Wenn diese Arbeitsschritte nicht oder nicht richtig ausgeführt wurden erscheinen i.d.R. "]
["Fehlerhinweise. Ebenso erhalten Sie  einen Fehlerhinweis, wenn die Summe der Tage in Spalte K"]
["nicht die Summe der Zinstage ergibt."]
[]
[]
["Excel-Tipp"]
[]
["Für die Punkte im Datum kann auch das \"-\" (Minuszeichen) oder das \"/\" Divisionszeichen "]
["aus dem Ziffernblock verwendet werden. "]
[]
["Für regelmäßig wiederkehrende Zahlungen genügt es, die Daten der ersten zwei Kontenbewegungen"]
["einzugeben. Anschließend diese beiden Zeilen von Spalte A bis F markieren und mit dem schwarzen"]
["Kreuzchen in der unteren Zelle in Spalte F nach unten ziehen. Excel erkennt darin die logische Reihe"]
["und füllt die nachstehenden Zeilen automatisch aus."]